[Event "Polish Youth B18 Championship 2023"]
[Site "Jastrzebia Gora"]
[Date "2023.03.13"]
[Round "2.6"]
[White "Taranowicz, Michal"]
[Black "Luberanski, Jakub"]
[Result "0-1"]
[ECO "A08"]
[WhiteElo "1900"]
[BlackElo "2242"]
[Annotator "TA"]
[PlyCount "116"]
[EventDate "2023.03.11"]
[EventType "swiss"]
[EventCountry "POL"]
[SourceTitle "playchess.com"]
[Source "ChessBase"]
[SourceQuality "1"]
[TimeControl "40/5400+30:1800+30"]

{[%evp 18,116,-26,-17,0,-50,-25,-30,4,0,7,-24,-5,-59,-13,-17,0,-14,39,0,0,0,68,80,108,98,94,73,50,25,68,0,-8,-58,-58,-60,-61,-65,-80,-60,-81,-328,-295,-314,-305,-355,-333,-602,-598,-626,-604,-560,-552,-547,-339,-643,-391,-415,-410,-488,-495,-454,-444,-759,-194,-194,-194,-194,-194,-583,-564,-543,-65,-67,0,-535,-535,-1309,-1298,-1335,-1348,-6377,-6138,-5282,-4764,-1325,-1127,-29961,-29960,-29961,-29966,-29976,-29977,-29974,-29968,-29969,-29970,-29967,-12386,-29968,-12214]} 1. e4 {[%emt 0:01:46]} c5 {[%emt 0:00:06]} 2. Nf3 {[%emt 0:00:14]} e6 {[%emt 0:00:04]} 3. d3 {[%emt 0:00:14]} d5 {[%emt 0:01:29]} 4. Nbd2 {[%emt 0:00:22]} Nc6 {[%emt 0:00:06]} 5. g3 {[%emt 0:00:09]} Nf6 {[%emt 0:00:38]} 6. Bg2 {[%emt 0:00:11]} Be7 {[%emt 0:00:08]} 7. O-O {[%emt 0:00:10]} O-O {[%emt 0:00:04]} 8. Re1 {[%emt 0:00:26]} Qc7 {[%emt 0:06:07]} 9. Nf1 {[%emt 0:01:08]} dxe4 {[%emt 0:03:04]} 10. dxe4 {[%emt 0:00:05]} Rd8 {[%emt 0:00:04] C00: French: Unusual White 2nd moves.} 11. Bd2 {[%emt 0:00:43]} (11. Qe2 $11) 11... e5 {[%emt 0:02:42]} 12. c3 {[%emt 0:04:31] [#]} b5 $146 {[%emt 0:02:37] Black has an edge.} ({Predecessor:} 12... h6 13. Qc2 Be6 14. Ne3 c4 15. Rad1 Bc5 16. Bc1 Ng4 17. Nxg4 Bxg4 18. Rd5 Bd6 {1-0 Maze,S (2619)-Khegay,D (2482) EU-ch 18th Minsk 2017 (8)}) 13. Qc2 {[%emt 0:01:21]} Be6 {[%emt 0:03:54]} 14. b3 {[%emt 0:04:22] Inhibits Bc4.} a5 {[%emt 0:06:01]} 15. Bg5 (15. Ne3 $11) 15... Ne8 {[%emt 0:08:29]} (15... b4 $15) 16. Bxe7 {[%emt 0:01:57]} Qxe7 {[%emt 0:00:06]} 17. Ne3 {[%emt 0:00:55]} Nc7 {[%emt 0:01:35]} (17... f6 $11) 18. h4 {[%emt 0:04:24]} f6 {[%emt 0:00:44]} 19. a4 {[%emt 0:04:44]} Rab8 {[%emt 0:11:00]} (19... b4 $1 $11) 20. axb5 $14 {[%emt 0:14:13]} Rxb5 {[%emt 0:00:13]} 21. Rab1 {[%emt 0:07:38]} Ne8 {[%emt 0:06:32][%cal Bc7e8,Be8d6,Bd6e4][%mdl 32]} 22. Nd5 {[%emt 0:01:30]} Qf7 {[%emt 0:01:56]} (22... Bxd5 23. exd5 Na7 24. Ra1 $16) 23. Bf1 {[%emt 0:09:27]} Rb7 {[%emt 0:00:19]} 24. Bc4 {[%emt 0:00:15]} ({White should try} 24. Qa2 $14) 24... Nd6 $1 $11 {[%emt 0:01:02][%cal Od6e4]} 25. Ra1 {[%emt 0:01:55] [#]} (25. Ne3 $11) 25... Nxe4 $1 $15 {[%emt 0:11:25][%mdl 64] Remove Defender} 26. Nxf6+ {[%emt 0:09:02][%mdl 64] Remove Defender, Deflection} Nxf6 {[%emt 0:00:56]} (26... gxf6 27. Rxe4 Rbd7 28. Qe2 $11) 27. Ng5 {[%emt 0:00:04][%cal Oc4e6] [#]} Bxc4 {[%emt 0:00:05]} 28. Nxf7 {[%emt 0:00:06]} Bxf7 {[%emt 0:00:04]} 29. c4 $2 {[%emt 0:08:05] White is weak on the dark squares} (29. Rad1 $17) 29... Nd4 {[%emt 0:00:54]} 30. Qc3 {[%emt 0:00:06]} Ra8 {[%emt 0:06:59]} (30... Rxb3 $2 {loses.} 31. Qxa5 Rf8 32. Rab1 Nf3+ 33. Kh1 Nxe1 34. Rxb3 Bxc4 35. Rb5 Bd5+ 36. f3 Nxf3 37. Rxc5 $19) (30... Nxb3 31. Ra3 Nd4 32. Qxa5 $19) 31. Rxa5 {[%emt 0:02:50]} Rab8 {[%emt 0:04:30]} (31... Rxb3 $2 32. Rxa8+ Be8 33. Qa5 Nf3+ 34. Kf1 Nxe1 35. Kxe1 $18) ({And not} 31... Rxa5 32. Qxa5 Nf3+ 33. Kh1 Rxb3 34. Rd1 $11) 32. Rxc5 $2 {[%emt 0:08:45]} (32. Rb5 Nxb5 33. cxb5) 32... Rxb3 $19 {[%emt 0:00:07]} 33. Qa5 {[%emt 0:00:07]} Nf3+ {[%emt 0:00:08] Excellent horsemanship.} 34. Kg2 {[%emt 0:00:04]} Nxe1+ {[%emt 0:00:14]} 35. Qxe1 {[%emt 0:00:05]} e4 {[%emt 0:00:18][%cal Oe4e3] And now ...e3! would win.} 36. Qc1 $2 {[%emt 0:01:21]} (36. h5) 36... Rf3 {[%emt 0:04:24] aiming for ...Ng4.} 37. Rb5 {[%emt 0:00:54]} Rc8 {[%emt 0:02:09][%cal Of6g4]} 38. Rb4 {[%emt 0:05:43]} Ng4 {[%emt 0:01:09]} 39. Rb2 {[%emt 0:02:33]} Bxc4 {[%emt 0:01:49]} 40. Rc2 {[%emt 0:00:00] [#]} (40. Qg5 $142 Be6 41. Qb5) 40... Bf1+ $1 {[%emt 0:00:00][%mdl 512]} 41. Kg1 {[%emt 0:00:27]} Rxc2 {[%emt 0:19:53]} 42. Qxc2 {[%emt 0:00:07] Qc8+ would be deadly.} Bh3 {[%emt 0:00:15]} (42... Rxf2 43. Qc8+ Rf8 44. Qxg4 $11) 43. Qxe4 $2 {[%emt 0:12:21]} (43. Qc8+ Rf8 44. Qe6+ Kh8 45. Qxe4) 43... Rxf2 {[%emt 0:01:35][%csl Gh3][%cal Rf2f1]} 44. Qe6+ {[%emt 0:00:15]} Kf8 $2 {[%emt 0:02:15]} (44... Rf7 $19 {( -> ...h5)} 45. Qc4 h6) 45. Qd6+ $1 $15 {[%emt 0:06:10]} Kg8 $2 {[%emt 0:00:19][%mdl 8192]} (45... Kf7 $15 46. Qd5+ Ke7 47. Qb7+ Kd6 48. Qb8+ Ke7 49. Qc7+ Ke8 50. Qc6+ Kf8 51. Qa8+ Ke7 52. Qe4+ Kf6 53. Qc6+ Ke5 54. Qc3+ Ke4 55. Qc6+ Ke3 56. Qc3+ Ke4 57. Qc6+ Kd4 58. Qb6+ Ke5 59. Qc7+ Kd5 60. Qb7+ Kc5 61. Qc7+ Kb5 62. Qb7+ Ka4 63. Qe4+ Ka3 64. Qd3+ Kb4 65. Qd4+ Kb3 66. Qd5+ Kc2 67. Qa2+ Kd1 68. Qa4+ Rc2) 46. Qe6+ $1 $19 {[%emt 0:00:04]} Rf7 {[%emt 0:02:21]} 47. h5 {[%emt 0:00:06]} h6 {[%emt 0:00:07]} 48. Qd5 {[%emt 0:00:19]} Nf6 {[%emt 0:00:30]} 49. Qc6 {[%emt 0:02:13]} Bg4 {[%emt 0:00:26]} ({Stronger than} 49... Nxh5 50. Qe8+ Rf8 51. Qxh5 $11) 50. Kg2 {[%emt 0:00:33]} Bxh5 {[%emt 0:00:22] White must now prevent ...Kh7.} 51. Qe6 {[%emt 0:00:16]} Kh7 {[%emt 0:00:29]} 52. Qe5 {[%emt 0:00:52]} Bg6 {[%emt 0:00:10]} 53. Qe6 {[%emt 0:00:09]} Ne4 {[%emt 0:01:22]} 54. g4 {[%emt 0:00:07]} Rf2+ {[%emt 0:00:05]} 55. Kg1 {[%emt 0:00:08]} Rf4 {[%emt 0:00:19]} 56. Kg2 {[%emt 0:00:09]} Nf6 {[%emt 0:00:05]} 57. g5 {[%emt 0:00:21]} Rg4+ {[%emt 0:00:10]} 58. Kh2 {[%emt 0:00:41]} Rxg5 {[%emt 0:00:04] Artfully played by Luberanski.   Weighted Error Value: White=0.97/Black=0.55} (58... hxg5 $142 59. Kh3 Be4 60. Kh2 Bd5 61. Qe5 Rg2+ 62. Kh3 Ra2 63. Qd4 Kg6 64. Qb6 Kh5 65. Qb1 Ra3+ 66. Kh2 Ng4+ 67. Kg1 Rg3+ 68. Kf1 Bc4+ 69. Ke1 Rg1+ {[%mdl 64] Skewer} 70. Kd2 Rxb1 71. Kc3 Ne5 72. Kd4 Rb5 73. Kc3 Kg4 74. Kd2 Kf4 75. Kc2 Ke3 76. Kc3 Bd5 77. Kc2 Nd3 78. Kd1 Bb3#) 0-1

[Event "Polish Youth B18 Championship 2023"]
[Site "Jastrzebia Gora"]
[Date "2023.03.13"]
[Round "2.7"]
[White "Kaliszuk, Kamil"]
[Black "Biesiadecki, Adam"]
[Result "1-0"]
[ECO "E46"]
[WhiteElo "2217"]
[BlackElo "1761"]
[Annotator "TA"]
[PlyCount "50"]
[EventDate "2023.03.11"]
[EventType "swiss"]
[EventCountry "POL"]
[SourceTitle "playchess.com"]
[Source "ChessBase"]
[SourceQuality "1"]
[TimeControl "40/5400+30:1800+30"]

{[%evp 18,50,0,-7,42,37,47,20,28,39,40,2,14,0,55,49,49,41,66,68,62,69,160,160,201,192,180,185,364,354,550,314,633,610,703]} 1. d4 {[%emt 0:00:09]} Nf6 {[%emt 0:00:06]} 2. c4 {[%emt 0:00:12]} e6 {[%emt 0:00:05]} 3. Nc3 {[%emt 0:00:28]} Bb4 {[%emt 0:00:13]} 4. e3 {[%emt 0:00:43]} O-O {[%emt 0:00:40]} 5. Bd2 {[%emt 0:00:45]} d5 {[%emt 0:01:06]} 6. Nf3 {[%emt 0:01:16]} b6 {[%emt 0:02:26]} 7. cxd5 {[%emt 0:02:45]} exd5 {[%emt 0:02:26]} 8. Rc1 {[%emt 0:00:30]} Bb7 {[%emt 0:08:42]} 9. Bd3 {[%emt 0:01:33]} Nbd7 {[%emt 0:01:01]} 10. O-O {[%emt 0:00:36]} Bxc3 {[%emt 0:02:50] E52: Nimzo-Indian: Rubinstein: 4...0-0 5 Nf3 d5 6 Bd3 b6.} (10... Be7 $11) 11. Bxc3 $14 {[%emt 0:02:29]} Ne4 {[%emt 0:04:49]} 12. Be1 {[%emt 0:07:41] [#]} c5 $146 {[%emt 0:03:49] The position is equal.} ({Predecessor:} 12... Rc8 13. Nd2 f5 14. f3 Nxd2 15. Qxd2 c5 16. dxc5 Nxc5 17. Bc2 Qf6 18. b4 Ne6 {½-½ Vargas Drechsler,C (1930)-Garcia Quevedo,J (1858) Barcelona Puig Memorial op 2nd 2016 (8)}) 13. dxc5 {[%emt 0:14:33]} bxc5 {[%emt 0:01:20]} 14. Nd2 {[%emt 0:02:54]} Nd6 {[%emt 0:10:18]} 15. Nf3 {[%emt 0:06:13][%cal Bd2f3,Bf3d4,Bd4f5,Bf5g7][%mdl 32]} Ne4 {[%emt 0:00:19]} 16. b4 {[%emt 0:01:25]} c4 {[%emt 0:13:21]} 17. Bb1 {[%emt 0:04:14]} Ndf6 {[%emt 0:08:13]} 18. Nd4 {[%emt 0:04:52]} Qd7 {[%emt 0:05:17]} 19. Qc2 {[%emt 0:03:35]} a5 {[%emt 0:10:58]} 20. f3 $16 {[%emt 0:05:36]} ({But not} 20. bxa5 Rfe8 $16) 20... Ng5 {[%emt 0:05:10]} 21. bxa5 {[%emt 0:04:11]} Rfe8 {[%emt 0:06:32]} 22. Bc3 {[%emt 0:05:11]} h6 $2 {[%emt 0:03:04]} (22... Bc8 {was necessary.} 23. Rfd1 h6) 23. Nf5 $18 {[%emt 0:02:35]} Ngh7 {[%emt 0:03:11]} (23... Bc8 {was called for.} 24. Nxh6+ {[%mdl 64] Deflection} gxh6 25. Bxf6 Qe6) 24. Rce1 {[%emt 0:01:57][%cal Of5g7] Nxg7! would be deadly.} Ra6 $2 {[%emt 0:03:52] [#]} (24... Nf8 25. Bxf6 gxf6 26. Nxh6+ Kg7) 25. Nxg7 $1 {[%emt 0:01:48][%mdl 576] Decoy} Ree6 {Weighted Error Value: White=0.27 (precise) /Black=0.72} (25... Nf8 26. Nxe8) 1-0

[Event "Polish Youth B18 Championship 2023"]
[Site "Jastrzebia Gora"]
[Date "2023.03.13"]
[Round "2.8"]
[White "Krasniewski, Szymon"]
[Black "Backiel, Hubert"]
[Result "1/2-1/2"]
[ECO "D38"]
[WhiteElo "1771"]
[BlackElo "2127"]
[Annotator "TA"]
[PlyCount "111"]
[EventDate "2023.03.11"]
[EventType "swiss"]
[EventCountry "POL"]
[SourceTitle "playchess.com"]
[Source "ChessBase"]
[SourceQuality "1"]
[TimeControl "40/5400+30:1800+30"]

{[%evp 10,111,15,-2,7,8,25,14,92,13,56,47,49,26,40,6,40,-5,0,-22,-10,-20,0,-5,-13,-105,-102,-105,-108,-108,-95,-103,-95,-100,-89,-81,-83,-128,-127,-133,-141,-130,-65,-65,-60,-176,-53,-39,-50,-65,-65,-65,0,0,0,0,0,-34,0,-22,0,-44,-39,-50,-32,-43,0,-73,-55,-41,-35,-36,-26,-31,-31,-47,-54,-104,-70,-79,-22,-115,-18,-20,-24,-34,-34,-30,-24,-54,-8,-16,0,-36,-35,-98,0,-12,0,-105,0,-32,0,-43]} 1. d4 {[%emt 0:00:04]} Nf6 {[%emt 0:01:21]} 2. c4 {[%emt 0:00:02]} e6 {[%emt 0:00:06]} 3. Nf3 {[%emt 0:00:04]} d5 {[%emt 0:00:03]} 4. Nc3 {[%emt 0:00:05]} Bb4 {[%emt 0:00:04]} 5. e3 {[%emt 0:00:53]} O-O {[%emt 0:03:27]} 6. Bd2 {[%emt 0:00:26]} Re8 {[%emt 0:01:04] E51: Nimzo-Indian: Rubinstein: 4...0-0 5 Nf3 d5.} 7. Bd3 {[%emt 0:01:50]} Nbd7 {[%emt 0:08:26]} 8. O-O {[%emt 0:01:24][%cal Oc3d5]} c6 {[%emt 0:07:19]} (8... dxc4 $11 {keeps the balance.} 9. Bxc4 b6) 9. Rc1 {[%emt 0:04:20]} (9. Nxd5 $1 $16 exd5 10. Bxb4) 9... dxc4 {[%emt 0:02:12]} 10. Bxc4 {[%emt 0:00:14]} b5 {[%emt 0:00:03] [#]} 11. Be2 $146 {[%emt 0:01:19]} ({Predecessor:} 11. Bd3 Bb7 12. Ne4 Bxd2 13. Nfxd2 Nxe4 14. Nxe4 Qe7 15. Qc2 h6 16. Be2 Rac8 17. Nc5 Nxc5 18. Qxc5 Qxc5 19. Rxc5 {½-½ Jovanovic,D (2104)-Ivanovic,V (1851) SRB Central-chT qual 2014 (7)}) 11... Bb7 {[%emt 0:00:40]} 12. Qb3 {[%emt 0:07:58]} Bf8 {[%emt 0:05:52]} (12... Bd6 {feels hotter.} 13. Ng5 a5 14. Qc2 Qb8) 13. Rfd1 {[%emt 0:09:38]} a6 {[%emt 0:02:06]} 14. Be1 {[%emt 0:11:23]} Qb8 {[%emt 0:04:10]} 15. a3 {[%emt 0:13:54]} Qa7 {[%emt 0:06:41]} 16. Ne5 {[%emt 0:15:13]} c5 {[%emt 0:04:44][%cal Bc6c5,Bc5c4][%mdl 32]} 17. Bf3 {[%emt 0:06:57]} (17. Nxd7 $11 Nxd7 18. dxc5 Nxc5 19. Qa2) 17... Nxe5 $17 {[%emt 0:09:03]} 18. dxe5 {[%emt 0:03:19]} Bxf3 {[%emt 0:00:12]} 19. gxf3 {[%emt 0:00:04]} Nd7 {[%emt 0:00:30][%cal Bf6d7,Bd7c5,Bc5d3][%mdl 32]} 20. f4 {[%emt 0:01:53]} c4 {[%emt 0:00:46]} 21. Qc2 {[%emt 0:03:03]} Nc5 {[%emt 0:00:07]} 22. Ne2 {[%emt 0:02:08]} Qb7 {[%emt 0:08:47]} 23. Nd4 {[%emt 0:01:10]} Nd3 {[%emt 0:00:32]} 24. Rb1 {[%emt 0:01:06]} Red8 {[%emt 0:02:22][%cal Od8d4]} 25. Qe2 {[%emt 0:02:25]} Bc5 {[%emt 0:01:40]} ({Of course not} 25... Rxd4 $6 26. exd4 Nxf4 27. Qg4 $11) ({Black should play} 25... Qe4 $17 26. f3 Qg6+ 27. Kh1 Bc5) 26. Qf3 $15 {[%emt 0:02:04]} Qd5 {[%emt 0:09:26]} 27. Bc3 {[%emt 0:04:41]} (27. Qxd5 $15 Rxd5 28. Ne2) 27... Qxf3 {[%emt 0:03:07]} (27... Bxd4 $19 28. Qxd5 Rxd5 29. Bxd4 Nxf4) 28. Nxf3 {[%emt 0:00:02]} a5 {[%emt 0:01:42]} 29. Bd4 {[%emt 0:03:31][%cal Od1d3] And now Rxd3! would win.} Be7 {[%emt 0:01:38]} 30. Ne1 {[%emt 0:00:52] [#]} Rxd4 {[%emt 0:04:58]} 31. exd4 $11 {[%emt 0:00:16]} Nxf4 {[%emt 0:00:04]} 32. Kf1 {[%emt 0:01:41]} Nd5 {[%emt 0:02:40]} 33. Rdc1 {[%emt 0:01:47][%cal Oa3a4]} Rc8 {[%emt 0:07:01][%mdl 1024] Black has compensation.} 34. Rc2 {[%emt 0:00:46]} Bg5 {[%emt 0:01:21]} 35. b3 {[%emt 0:00:43]} c3 {[%emt 0:00:25]} 36. Nd3 {[%emt 0:00:30]} Be7 {[%emt 0:00:36]} (36... Be3 $5) 37. Ra1 $1 {[%emt 0:00:38]} Bd8 {[%emt 0:02:52]} 38. Nc1 {[%emt 0:00:30]} (38. b4 $11) 38... Bb6 {[%emt 0:00:48]} 39. Ne2 {[%emt 0:00:09]} g5 {[%emt 0:00:26]} 40. Rac1 {[%emt 0:00:00][%cal Re2c3]} b4 {[%emt 0:00:00]} 41. axb4 {[%emt 0:08:52]} axb4 {[%emt 0:00:46]} 42. Ra1 {[%emt 0:01:30] Dodges Ra8} Kg7 {[%emt 0:03:48]} 43. Kg2 {[%emt 0:00:46]} (43. Rca2 $15) 43... Kg6 {[%emt 0:04:26]} 44. Kf3 {[%emt 0:00:51]} h5 {[%emt 0:01:26]} ({Black should try} 44... f5 $17) 45. h3 {[%emt 0:11:47]} (45. Ke4 $11) 45... h4 {[%emt 0:07:20]} (45... f5 $1 $17 {Threatens to win with ...Rf8.} 46. h4 gxh4) 46. Ke4 {[%emt 0:07:00]} f5+ {[%emt 0:00:18]} 47. exf6 {[%emt 0:00:45]} Nxf6+ {[%emt 0:00:06]} 48. Kd3 {[%emt 0:01:18]} Kf5 {[%emt 0:02:55]} 49. Ra6 {[%emt 0:01:49]} Rc6 {[%emt 0:10:14]} (49... Nd5 $15 {should be considered.}) 50. f3 {[%emt 0:00:58]} Rd6 {[%emt 0:02:11] ...e5 is the strong threat.} (50... e5 $5 {[%cal Rc6d6]}) 51. Kc4 {[%emt 0:00:44]} Nd5 {[%emt 0:00:06] Strongly threatening ...Ne3+.} 52. Rc1 {[%emt 0:00:31] [#]} (52. Rca2 $15) 52... Nc7 {[%emt 0:01:42]} (52... e5 $1 $17) 53. Ra2 {[%emt 0:00:31]} Nd5 {[%emt 0:00:29]} (53... Rd8 $11) 54. Ra6 $17 {[%emt 0:00:14] [#]} Nc7 {[%emt 0:00:29]} (54... e5 $1 $17) 55. Ra2 $15 {[%emt 0:00:04]} Nd5 {[%emt 0:00:43]} 56. Ra6 {[%emt 0:00:18] Weighted Error Value: White=0.25 (precise) /Black=0.26 (precise)} 1/2-1/2

[Event "Polish Youth B18 Championship 2023"]
[Site "Jastrzebia Gora"]
[Date "2023.03.13"]
[Round "2.9"]
[White "Luczak, Filip"]
[Black "Pisarek, Jan"]
[Result "1-0"]
[ECO "A04"]
[WhiteElo "2345"]
[BlackElo "1931"]
[Annotator "TA"]
[PlyCount "83"]
[EventDate "2023.03.11"]
[EventType "swiss"]
[EventCountry "POL"]
[SourceTitle "playchess.com"]
[Source "ChessBase"]
[SourceQuality "1"]
[TimeControl "40/5400+30:1800+30"]

{[%evp 23,83,61,72,75,69,62,57,46,70,62,112,103,108,62,122,40,47,39,35,43,25,26,37,32,31,29,60,35,125,127,128,145,143,112,142,143,196,199,193,214,273,265,279,272,364,374,389,277,279,274,361,353,383,379,402,400,478,468,538,525,520,510]} 1. Nf3 {[%emt 0:00:01]} c5 {[%emt 0:00:13]} 2. g3 {[%emt 0:02:16]} Nc6 {[%emt 0:01:04]} 3. Bg2 {[%emt 0:00:32]} g6 {[%emt 0:00:32]} 4. c3 {[%emt 0:03:35]} Bg7 {[%emt 0:12:48]} 5. d4 {[%emt 0:00:19]} cxd4 {[%emt 0:01:43]} 6. cxd4 {[%emt 0:00:02]} Nf6 {[%emt 0:01:44]} 7. O-O {[%emt 0:02:18]} d5 {[%emt 0:01:09]} 8. Nc3 {[%emt 0:00:05]} O-O {[%emt 0:01:45]} 9. Ne5 {[%emt 0:00:03]} Nxe5 {[%emt 0:16:11]} 10. dxe5 {[%emt 0:00:05]} Ng4 {[%emt 0:00:24]} 11. Nxd5 $1 {[%emt 0:13:17] The main line 11.Nxd5 scores better than 11.Qxd5.} Nxe5 {[%emt 0:04:31]} 12. Bg5 {[%emt 0:00:09]} Nc6 {[%emt 0:04:36][%cal Oh7h6]} 13. Qa4 {[%emt 0:03:31] Black must now prevent Rad1. D79: Fianchetto Grünfeld: Symmetrical Variation (6 0-0 c6 7 cxd5 cxd5).} h6 {[%emt 0:03:32]} 14. Be3 {[%emt 0:02:10]} Bd7 {[%emt 0:18:24]} 15. Rad1 {[%emt 0:06:12] [#] White is slightly better.} Re8 $146 {[%emt 0:16:00]} ({Predecessor:} 15... Nd4 16. Qb4 e5 17. Bxd4 exd4 18. Qxb7 Kh7 19. e3 Rb8 20. Qxa7 Bc6 21. Rxd4 Rxb2 {1-0 Cori,J (2602)-Montoliu Cervero,F (2326) Benasque op 36th 2016 (3)}) 16. Qb3 {[%emt 0:13:44] White has more active pieces. The black rooks are badly placed.} Rb8 {[%emt 0:03:48]} (16... Qc8 $1 $14) 17. Rd2 $16 {[%emt 0:07:43]} e5 {[%emt 0:01:52] [#]} 18. Qa3 {[%emt 0:01:18]} (18. Bxa7 $1 $16 Nxa7 19. Nb6 {[%mdl 64] Discovered Attack}) 18... Nd4 {[%emt 0:03:58] [#]} (18... Be6 $14) 19. Bxd4 {[%emt 0:04:45]} (19. Qxa7 Bc6 20. Bxd4 exd4 $14) ({White should try} 19. f4 $1 $16) 19... exd4 $14 20. Qxa7 {[%emt 0:01:45]} Bc6 {[%emt 0:00:34]} 21. Nf4 {[%emt 0:03:06]} Ra8 {[%emt 0:01:01]} 22. Qc5 {[%emt 0:00:14]} Bxg2 {[%emt 0:01:37]} 23. Kxg2 {[%emt 0:00:07]} Rxa2 {[%emt 0:01:05]} 24. Qb5 {[%emt 0:05:10]} b6 {[%emt 0:02:04]} 25. Qb3 {[%emt 0:07:56]} (25. Qd5 $5 {[%cal Rd5a2]} Ra8 26. Qxd8 Raxd8 27. Ra1 $14) 25... Ra5 {[%emt 0:00:30]} (25... Qa8+ $14 26. f3 Ra7) 26. Nxg6 $16 {[%emt 0:02:58]} Qg5 {[%emt 0:01:01]} 27. Nf4 $36 {[%emt 0:00:09][%cal Bg6f4,Bf4d3,Bd3e1,Be1f3,Bf3d4][%mdl 2080] Keeping Black busy.} Be5 {[%emt 0:00:45]} 28. h4 {[%emt 0:02:19]} (28. Qxb6 Bxf4 29. Rxd4 Rb8 $17) 28... Qf6 {[%emt 0:00:18]} 29. Nd3 {[%emt 0:03:15]} Bb8 {[%emt 0:00:07]} (29... Qc6+ $16 30. Kg1 Re6) 30. Ne1 $18 {[%emt 0:01:57]} Rae5 {[%emt 0:01:01]} 31. Qd3 {[%emt 0:02:06]} (31. Rxd4 $6 Rxe2 32. Qd3 (32. Nf3 Qg6 $14) 32... R8e3 33. Qxe3 Rxe3 34. fxe3 Qc6+ 35. Rf3 Be5 $16) 31... Qg7 {[%emt 0:00:29][%cal Oe5e3]} 32. Nf3 {[%emt 0:01:12]} (32. Qxd4 Rxe2 33. Rxe2 Rxe2 34. Qd8+ (34. Qxb6 $2 Qxg3+ 35. Kh1 Qh2#) 34... Qf8 $16) 32... Re4 {[%emt 0:00:31]} 33. Qb5 {[%emt 0:02:43]} (33. Nxd4 Bf4 $18) 33... R8e6 {[%emt 0:00:52]} 34. Rc1 {[%emt 0:00:35] Threatens to win with Rc8+.} Kh7 {[%emt 0:00:40]} 35. Qf5+ {[%emt 0:01:06]} Qg6 {[%emt 0:00:05]} 36. Qxg6+ {[%emt 0:00:05]} ({Much less strong is} 36. Nxd4 Qxf5 37. Nxf5 Rxe2 38. Rxe2 Rxe2 $18) 36... Kxg6 {[%emt 0:00:42]} 37. Nxd4 {[%emt 0:00:31]} ({Less strong is} 37. Rxd4 Rxe2 38. h5+ Kf6 $18) 37... Rd6 {[%emt 0:00:38]} 38. e3 {[%emt 0:00:27] And now Rc8 would win.} Re8 {[%emt 0:00:32] Prevents Rc8} 39. Rdc2 {[%emt 0:00:13]} Rf6 {[%emt 0:00:31]} 40. Rc6 {[%emt 0:00:00] White is clearly winning.} Be5 {[%emt 0:00:00]} 41. Rxf6+ {[%emt 0:00:34]} Bxf6 {[%emt 0:00:57]} 42. Rc6 {[%emt 0:00:05] Weighted Error Value: White=0.13 (very precise) /Black=0.31} 1-0